bitfinex-derivatives/quotes_ETHF0:USTF0_20250110
["timestamp","ask_amount","ask_price","bid_price","bid_amount"]
[1736515935688,3.2078,3266.2,3265.0,3.2078]
[1736515935892,0.37119912,3266.1,3266.0,0.30616]
[1736515936090,3.2078,3266.9,3265.7,3.2078]
[1736515936289,5.8e-06,3266.6,3266.5,3.51392]
[1736515936498,5.8e-06,3266.6,3266.5,8.51392]
[1736515936688,3.2078,3268.1,3266.7,0.76524]
[1736515936986,0.3714047,3268.0,3267.3,3.2078]
[1736515937185,3.2078,3268.1,3268.0,0.30598]
[1736515937490,3.2078,3269.0,3268.5,0.30593]
[1736515937690,3.2078,3269.0,3268.0,0.56630349]
[1736515937691,0.37116804,3268.9,3268.8,0.3059]
[1736515937990,3.2078,3269.4,3269.0,0.30588]
[1736515938191,0.36603783,3269.3,3268.4,3.2078]
[1736515938391,3.2078,3269.4,3269.3,0.58097107]
[1736515938596,3.2078,3269.4,3269.3,41.68683107]
[1736515938791,3.2078,3270.3,3269.4,0.7646]
[1736515938996,3.2078,3270.8,3269.6,3.2078]
[1736515939193,0.36550433,3270.7,3270.6,0.30573]
[1736515939390,3.2078,3271.0,3270.5,0.30574]
[1736515939589,3.2078,3271.9,3270.4,3.2078]
[1736515939794,3.2078,3272.1,3270.8,3.2078]
[1736515939993,3.2078,3272.1,3272.0,0.3056]
[1736515940188,3.2078,3273.2,3272.0,0.65496673]
[1736515940491,3.2078,3273.2,3272.7,0.30554]
[1736515940703,3.2078,3273.2,3273.1,0.3055]
[1736515940995,3.2078,3274.5,3272.9,3.2078]
[1736515941192,3.2078,3274.6,3273.3,3.2078]
[1736515941394,3.2078,3274.6,3273.8,3.2078]
[1736515942089,4.672,3276.4,3272.5,6.63967101]
[1736515942090,3.2078,3275.5,3274.5,3.2078]
[1736515942287,3.2078,3275.5,3274.1,3.2078]
[1736515942488,3.2078,3275.5,3275.0,0.66560445]
[1736515942692,3.2078,3275.5,3275.1,40.8]
[1736515942897,3.2078,3275.2,3275.0,0.66560445]
[1736515943289,3.2078,3275.2,3275.0,0.58067436]
[1736515943493,0.32688667,3276.6,3275.1,44.0078]
[1736515943695,3.2078,3277.3,3275.5,3.2078]
[1736515943893,3.2078,3276.8,3275.3,3.2078]
[1736515944199,3.2078,3276.5,3275.1,40.8]
[1736515944388,3.2078,3276.5,3275.9,0.30524]
[1736515944593,3.2078,3277.2,3276.2,0.65395845]
[1736515944988,3.2078,3276.8,3276.2,0.65395845]
[1736515945398,3.21883442,3277.6,3276.3,0.3052]
[1736515945699,3.21883442,3277.6,3276.2,0.65395845]
[1736515945700,3.2078,3277.2,3276.5,3.2078]
[1736515945993,3.2078,3277.2,3276.0,3.2078]
[1736515945994,3.2078,3276.6,3276.0,3.2078]
[1736515946193,3.2078,3277.1,3275.6,3.2078]
[1736515946402,3.2078,3277.1,3275.7,3.2078]
[1736515946700,3.2078,3277.1,3275.8,3.2078]
[1736515947008,3.2078,3277.1,3276.8,0.66115152]
[1736515947195,3.21883442,3277.6,3276.8,0.66115152]
[1736515947592,3.21883442,3277.6,3276.8,0.96631152]
[1736515947794,3.21883442,3277.6,3276.9,0.30514]
[1736515947999,3.21883442,3277.6,3277.0,40.8]
[1736515948194,4.42e-06,3277.6,3277.5,0.30509]
[1736515948388,3.2078,3277.7,3277.3,0.66115152]
[1736515948589,3.2078,3278.0,3277.3,0.66115152]
[1736515948793,3.2078,3278.2,3278.1,0.30503]
[1736515949000,3.2078,3278.2,3277.1,0.30513]
[1736515949201,3.2078,3278.2,3277.4,3.2078]
[1736515949396,3.2078,3278.9,3277.4,3.2078]
[1736515949597,3.2078,3278.9,3277.8,0.30506]
[1736515949905,3.2078,3278.1,3277.7,0.64509162]
[1736515950099,0.30499,3278.6,3277.7,0.64509162]
[1736515950295,3.2078,3277.8,3277.7,0.64509162]
[1736515950997,18.07781319,3277.8,3277.7,0.64509162]
[1736515951295,3.2078,3277.8,3276.1,3.2078]
[1736515951499,1.08887743,3279.5,3276.5,0.30518]
[1736515951500,3.2078,3277.1,3276.5,0.30518]
[1736515951799,3.2078,3276.6,3276.4,0.57660814]
[1736515951994,3.2078,3276.0,3274.3,6.22400765]
[1736515952197,0.56657909,3276.7,3273.8,0.30543]
[1736515952198,3.2078,3274.5,3273.8,0.30543]
[1736515952399,3.2078,3274.5,3273.3,40.8]
[1736515952592,3.2078,3274.5,3273.7,0.30544]
[1736515952803,3.2078,3274.5,3274.0,0.574558]
[1736515953099,3.2078,3274.4,3274.0,0.574558]
[1736515953503,3.2078,3274.2,3274.0,0.574558]
[1736515953905,0.30541,3274.1,3274.0,0.574558]
[1736515954105,16.85611343,3274.2,3274.0,0.574558]
[1736515954300,3.2078,3274.2,3272.0,3.2078]
[1736515954607,3.2078,3272.5,3272.3,0.55680282]
[1736515954902,3.2078,3272.6,3272.3,0.55680282]
[1736515955105,3.2078,3272.6,3269.4,9.165]
[1736515955400,3.2078,3270.9,3270.6,0.30573]
[1736515955598,3.2078,3270.9,3270.2,0.56886291]
[1736515955906,3.2078,3270.4,3270.2,0.56886291]
[1736515956504,0.56737848,3272.0,3270.2,0.56886291]
[1736515956505,3.2078,3270.3,3270.2,0.56886291]
[1736515956699,3.2078,3271.0,3270.2,0.56886291]
[1736515956900,0.56737848,3272.0,3270.2,0.56886291]
[1736515956901,3.2078,3271.1,3270.2,0.56886291]
[1736515957101,3.2078,3270.3,3270.2,0.56886291]
[1736515957500,15.72475261,3270.3,3270.2,0.56886291]
[1736515957705,3.2078,3270.8,3270.2,0.56886291]
[1736515957900,3.2078,3270.3,3270.2,0.56886291]
[1736515958201,3.2078,3271.2,3270.3,0.30576]
[1736515958398,3.2078,3270.6,3270.2,41.36886291]
[1736515958998,3.2078,3271.2,3270.2,44.57666291]
[1736515959405,3.2078,3271.2,3270.5,3.2078]
[1736515959603,3.2078,3270.6,3270.2,41.36886291]
[1736515959912,3.2078,3271.0,3270.2,41.36886291]
[1736515960204,3.2078,3270.3,3270.2,0.56886291]
[1736515960407,3.2078,3270.3,3267.8,3.2078]
[1736515960598,3.2078,3268.6,3268.0,0.61963501]
[1736515961003,3.2078,3269.0,3268.1,0.30597]
[1736515961304,3.2078,3270.0,3268.6,3.2078]
[1736515961607,3.2078,3269.2,3268.6,0.30592]
[1736515961903,3.2078,3269.3,3268.4,0.55620277]
[1736515962108,3.2078,3268.8,3268.4,0.55620277]
[1736515962915,3.2078,3269.2,3268.6,3.2078]
[1736515963209,3.2078,3269.2,3268.4,0.55620277]
[1736515963513,3.2078,3270.6,3270.3,0.30575]
[1736515963808,3.2078,3271.2,3270.7,0.30572]
[1736515964113,3.2078,3271.2,3268.9,6.63967101]
[1736515964114,3.2078,3270.8,3269.8,0.30581]
[1736515964403,3.2078,3270.8,3269.5,44.0078]
[1736515964404,3.2078,3271.5,3270.5,0.61993304]
[1736515964603,1.52648,3275.4,3270.9,3.2078]
[1736515964604,3.2078,3272.3,3270.9,3.2078]
[1736515964806,3.2078,3272.3,3271.1,0.30568]
[1736515965001,3.2078,3272.3,3271.7,3.2078]
[1736515965306,3.2078,3274.9,3272.1,3.2078]
[1736515965514,3.2078,3273.5,3272.4,0.57883944]
[1736515965699,3.2078,3274.1,3273.2,0.30549]
[1736515965899,3.2078,3273.3,3272.5,0.30556]
[1736515966205,3.2078,3273.5,3272.5,0.30556]
[1736515966599,3.2078,3273.0,3272.4,0.57883944]
[1736515966901,3.2078,3273.4,3272.4,0.57883944]
[1736515967103,3.2078,3273.4,3272.8,0.30553]
[1736515967407,3.51332,3273.0,3272.4,0.57883944]
[1736515967606,3.2078,3272.8,3272.4,0.57883944]
[1736515967807,15.1558897,3272.8,3272.4,0.57883944]
[1736515968005,3.2078,3273.1,3272.5,0.30556]
[1736515968212,3.2078,3272.7,3272.4,0.57883944]
[1736515968506,0.30556,3272.6,3272.4,0.57883944]
[1736515968702,3.2078,3272.7,3272.4,0.57883944]
[1736515969106,3.2078,3272.7,3272.5,40.8]
[1736515969411,15.1558897,3272.7,3272.4,0.57883944]
[1736515969604,0.30555,3272.6,3272.4,0.57883944]
[1736515969803,0.30556,3272.5,3272.4,0.57883944]
[1736515970203,3.51338,3272.3,3270.5,0.30573]
[1736515970406,3.2078,3270.9,3269.6,14.16719473]
[1736515970607,3.2078,3270.9,3270.2,4.99519473]
[1736515970809,3.2078,3270.9,3270.8,0.86332035]
[1736515971005,3.2078,3271.4,3271.3,0.30567]
[1736515971205,3.2078,3271.4,3270.8,0.55760035]
[1736515971403,3.2078,3271.4,3271.3,0.30567]
[1736515971607,3.2078,3271.4,3270.8,5.55279508]
[1736515971909,3.2078,3271.6,3270.8,0.55760035]
[1736515972408,3.2078,3271.1,3270.8,0.55760035]
[1736515972709,3.2078,3271.1,3269.4,0.76461]
[1736515972710,0.30576,3270.4,3269.1,0.30587]
[1736515972903,3.2078,3269.7,3269.4,0.55744188]
[1736515973914,13.46184956,3269.7,3269.4,0.55744188]
[1736515974309,0.30584,3269.5,3269.4,0.55744188]
[1736515974508,13.46184956,3269.7,3269.4,0.55744188]
[1736515974808,12.90440768,3269.7,3267.5,4.99519473]
[1736515975011,3.2078,3268.5,3268.2,0.30595]
[1736515975215,3.2078,3268.5,3267.8,0.67109438]
[1736515975414,3.2078,3267.9,3267.8,0.67109438]
[1736515976008,3.74882128,3268.3,3267.8,0.67109438]
[1736515976211,13.44542896,3268.3,3267.8,0.67109438]
[1736515976417,3.51379,3267.9,3267.8,0.67109438]
[1736515976808,8.2078,3267.9,3265.9,3.2078]
[1736515977014,3.2078,3266.2,3266.0,0.30616]
[1736515977312,3.2078,3266.2,3264.9,3.2078]
[1736515977515,3.2078,3265.1,3265.0,0.30626]
[1736515977815,3.2078,3265.1,3265.0,0.67214604]
[1736515978013,3.2078,3265.1,3265.0,41.77840604]
[1736515978212,3.2078,3265.1,3265.0,41.47214604]
[1736515978419,3.2078,3265.7,3265.0,41.47214604]
[1736515978614,3.2078,3265.7,3265.3,0.30623]
[1736515978813,3.2078,3266.2,3265.5,0.3062]
[1736515979011,3.2078,3266.2,3265.0,41.47214604]
[1736515979412,3.2078,3265.2,3265.0,41.47214604]
[1736515979617,3.2078,3265.1,3265.0,41.47214604]
[1736515980528,3.2078,3265.1,3265.0,0.67214604]
[1736515980819,13.56912464,3265.1,3265.0,0.67214604]
[1736515981020,13.56908451,3265.1,3265.0,0.67214604]
[1736515981318,3.56622683,3265.1,3265.0,0.67214604]
[1736515981812,3.2078,3265.1,3265.0,0.67214604]
[1736515982014,3.2078,3265.1,3265.0,41.47214604]
[1736515982215,3.2078,3267.1,3265.7,0.30619]
[1736515982414,3.2078,3267.1,3265.0,41.47214604]
[1736515982415,0.35937148,3267.0,3266.0,4.99519473]
[1736515982610,3.2078,3266.7,3266.6,4.99519473]
[1736515982816,0.40526108,3267.2,3266.6,4.99519473]
[1736515983022,0.40526108,3267.2,3266.9,0.59654994]
[1736515983211,3.2078,3268.0,3266.9,0.59654994]
[1736515983412,3.2078,3267.3,3266.9,0.59654994]
[1736515983617,0.35429451,3267.2,3266.9,0.59654994]
[1736515983817,0.35429451,3267.1,3265.3,4.99519473]
[1736515984116,3.2078,3266.8,3266.5,4.99519473]
[1736515984321,3.2078,3267.6,3266.5,4.99519473]
[1736515984618,0.35441351,3267.5,3267.4,0.64715335]
[1736515984822,0.35441351,3267.5,3264.6,0.76573]
[1736515984823,3.56221351,3267.5,3265.9,4.99519473]
[1736515985018,3.2078,3266.0,3265.3,4.99519473]
[1736515985214,3.2078,3265.5,3264.7,4.99519473]
[1736515985414,3.2078,3265.1,3264.1,4.99519473]
[1736515985613,3.2078,3264.2,3263.5,4.99519473]
[1736515986027,0.76548,3265.8,3263.5,4.99519473]
[1736515986028,3.2078,3263.8,3263.5,4.99519473]
[1736515986516,3.2078,3264.3,3263.5,4.99519473]
[1736515986917,3.2078,3264.3,3262.9,4.99519473]
[1736515986918,0.3064,3263.6,3262.9,4.99519473]
[1736515987117,3.2078,3263.6,3262.9,4.99519473]
[1736515987320,3.2078,3263.8,3262.9,4.99519473]
[1736515987515,3.2078,3263.3,3262.3,4.99519473]
[1736515987718,4.99519473,3265.3,3261.7,4.99519473]
[1736515987719,3.2078,3263.2,3261.7,4.99519473]
[1736515987921,0.30647,3262.8,3261.7,4.99519473]
[1736515988116,3.2078,3262.1,3261.7,4.99519473]
[1736515988318,3.2078,3262.7,3261.7,4.99519473]
[1736515988724,3.2078,3262.7,3262.4,0.30649]
[1736515988928,3.2078,3262.7,3262.3,4.99519473]
[1736515989130,3.2078,3263.1,3262.3,8.20299473]
[1736515989326,3.2078,3263.6,3262.9,4.99519473]
[1736515989524,3.2078,3264.0,3262.9,8.20299473]
[1736515989721,3.2078,3263.6,3262.9,4.99519473]
[1736515990125,0.30645,3263.0,3262.3,4.99519473]
[1736515990434,3.2078,3262.5,3261.7,4.99519473]
[1736515990623,3.2078,3262.1,3261.7,4.99519473]
[1736515990819,3.2078,3262.0,3261.7,4.99519473]
[1736515991127,3.2078,3262.0,3261.1,4.99519473]
[1736515991332,3.2078,3261.5,3260.5,4.99519473]
[1736515991523,3.2078,3261.5,3261.1,4.99519473]
[1736515991830,3.2078,3262.1,3261.5,0.30658]
[1736515992021,3.2078,3262.1,3261.8,4.99519473]
[1736515992217,3.2078,3262.7,3262.1,0.30653]
[1736515992531,3.2078,3262.7,3262.4,4.99519473]
[1736515992827,3.2078,3263.6,3262.4,4.99519473]
[1736515993019,3.51414,3264.2,3263.2,0.30643]
[1736515993224,3.2078,3263.8,3263.1,4.99519473]
[1736515993529,3.2078,3264.7,3263.7,8.20299473]
[1736515994029,3.2078,3264.7,3264.3,4.99519473]
[1736515994426,3.2078,3265.8,3264.6,3.2078]
[1736515994630,3.2078,3266.5,3265.6,0.30619]
[1736515994828,3.2078,3267.8,3266.4,3.2078]
[1736515995021,3.2078,3268.0,3267.1,4.99519473]
[1736515995222,3.2078,3267.6,3266.9,3.2078]
[1736515995426,3.2078,3267.6,3266.6,40.8]
[1736515995619,3.2078,3267.6,3266.7,0.30609]
[1736515995824,3.2078,3268.0,3267.1,4.99519473]
[1736515996028,3.2078,3268.7,3267.1,4.99519473]
[1736515996231,3.2078,3268.7,3266.6,40.8]
[1736515996232,3.2078,3268.4,3267.7,4.99519473]
[1736515996431,3.2078,3269.4,3268.3,4.99519473]
[1736515997133,3.2078,3268.4,3267.7,4.99519473]
[1736515997519,3.2078,3268.4,3266.9,3.2078]
[1736515997520,3.2078,3268.4,3268.3,4.99519473]
[1736515997730,4.425,3270.7,3268.3,45.79519473]
[1736515997731,3.2078,3269.9,3268.3,45.79519473]
[1736515997920,3.2078,3269.0,3268.5,0.30593]
[1736515998129,3.2078,3269.0,3268.4,0.30594]
[1736515998327,3.2078,3268.5,3267.8,3.2078]
[1736515998531,0.30586,3269.3,3268.0,0.30598]
[1736515998727,3.2078,3269.5,3267.7,4.99519473]
[1736515998929,0.30589,3269.0,3267.9,3.2078]
[1736515999231,0.76436,3270.6,3267.7,4.99519473]
[1736515999232,3.2078,3268.7,3267.7,4.99519473]
[1736515999531,3.2078,3268.8,3268.3,4.99519473]
[1736515999730,0.35287558,3268.7,3267.7,4.99519473]
[1736515999924,3.2078,3268.9,3267.8,0.30599]
[1736516000130,3.51353,3270.7,3269.3,0.30585]
[1736516000433,3.2078,3269.7,3268.8,4.99519473]
[1736516000937,3.2078,3269.2,3267.7,3.2078]
[1736516001230,3.2078,3268.2,3267.0,0.30607]
[1736516001436,3.2078,3268.2,3266.9,4.99519473]
[1736516001634,3.2078,3267.9,3266.9,4.99519473]
[1736516001929,3.2078,3267.5,3266.9,4.99519473]
[1736516002326,3.2078,3267.4,3266.9,4.99519473]
[1736516002728,3.2078,3267.9,3266.9,4.99519473]
[1736516002928,3.2078,3267.6,3266.9,4.99519473]
[1736516003130,0.30603,3267.5,3266.9,4.99519473]
[1736516003333,3.2078,3267.1,3266.3,4.99519473]
[1736516003536,0.34913774,3267.6,3265.7,4.99519473]
[1736516003537,3.2078,3266.7,3265.7,4.99519473]
[1736516003737,3.2078,3265.9,3265.1,8.20299473]
[1736516004031,3.2078,3265.2,3264.5,4.99519473]
[1736516004226,3.2078,3265.1,3264.5,4.99519473]
[1736516004429,3.2078,3266.1,3264.5,4.99519473]
[1736516004735,3.2078,3266.1,3264.2,3.2078]
[1736516004736,3.2078,3265.0,3264.6,40.8]
[1736516005126,3.55693774,3265.0,3263.8,5.01596299]
[1736516005438,3.2078,3264.2,3263.2,5.01596299]
[1736516005638,3.2078,3264.2,3263.7,5.01596299]
[1736516005841,0.30628,3264.8,3263.7,5.01596299]
[1736516005842,3.2078,3264.8,3263.7,5.01596299]
[1736516006034,3.2078,3265.2,3264.5,5.01596299]
[1736516006240,3.2078,3264.8,3264.5,5.01596299]
[1736516006638,3.55693774,3264.8,3263.9,5.01596299]
[1736516006829,3.2078,3264.0,3263.3,45.81596299]
[1736516007034,3.2078,3263.9,3263.3,45.81596299]
[1736516007236,3.2078,3264.3,3263.3,45.81596299]
[1736516007435,3.2078,3263.8,3263.3,45.81596299]
[1736516007639,3.2078,3264.2,3263.3,45.81596299]
[1736516007840,3.2078,3264.2,3263.9,5.01596299]
[1736516008037,3.2078,3264.6,3263.9,5.32232299]
[1736516008241,3.2078,3264.6,3263.9,5.01596299]
[1736516008552,3.2078,3265.1,3264.5,5.01596299]
[1736516009445,3.2078,3265.2,3264.5,5.01596299]
[1736516009641,3.2078,3265.2,3264.8,0.30627]
[1736516009940,3.2078,3265.3,3265.1,5.01596299]
[1736516010140,0.30619,3265.8,3265.1,5.01596299]
[1736516010339,3.2078,3265.5,3265.1,5.01596299]
[1736516010646,0.35093595,3265.4,3265.2,44.0078]
[1736516010843,3.2078,3265.9,3265.2,44.0078]
[1736516011142,3.2078,3266.2,3265.2,49.02376299]
[1736516011334,0.35109163,3266.1,3265.2,49.02376299]
[1736516011537,0.3512178,3266.0,3265.2,49.02376299]
[1736516011733,0.30612,3266.5,3265.4,0.30622]
[1736516011939,3.2078,3265.6,3264.6,5.01596299]
[1736516012144,3.2078,3265.2,3264.0,5.01596299]
[1736516012343,0.35101287,3265.1,3264.6,5.01596299]
[1736516012541,3.2078,3264.9,3264.0,5.01596299]
[1736516012733,3.55877018,3264.8,3264.0,5.01596299]
[1736516012935,0.35097018,3264.7,3264.0,5.01596299]
[1736516013244,3.2078,3266.2,3264.6,8.22376299]
[1736516013550,0.35113518,3266.1,3265.5,5.01596299]
[1736516013737,0.35113518,3266.0,3265.6,40.8]
[1736516013937,3.2078,3266.7,3265.9,3.2078]
[1736516014143,3.2078,3267.2,3266.5,3.2078]
[1736516014340,0.35125806,3267.1,3266.7,5.01596299]
[1736516014542,3.2078,3267.4,3266.8,40.8]
[1736516014743,0.35125888,3267.3,3266.7,5.01596299]
[1736516014945,0.35125888,3267.2,3266.7,5.01596299]
[1736516015154,3.51382,3267.6,3266.7,45.81596299]
[1736516015339,0.34607808,3267.5,3266.7,45.81596299]
[1736516015539,3.2078,3268.0,3267.3,5.01596299]
[1736516015746,0.34616638,3267.9,3267.3,5.01596299]
[1736516015948,3.2078,3268.8,3267.3,5.01596299]
[1736516016144,0.34619704,3268.7,3267.6,3.2078]
[1736516016342,0.306,3267.8,3266.7,45.81596299]
[1736516016641,0.34619704,3267.7,3266.8,3.2078]
[1736516016848,3.2078,3268.3,3266.8,3.2078]
[1736516017144,3.2078,3267.0,3264.9,3.2078]
[1736516017343,0.34608118,3268.2,3265.2,5.01596299]
[1736516017344,0.30621,3265.6,3265.2,5.01596299]
[1736516017547,0.34612648,3265.5,3265.2,5.01596299]
[1736516017748,3.2078,3265.9,3265.2,5.01596299]
[1736516018141,3.2078,3265.9,3265.1,3.2078]
[1736516018142,3.2078,3265.9,3265.8,5.01596299]
[1736516018449,0.30614,3266.3,3265.8,5.01596299]
[1736516018644,0.34653756,3266.2,3265.8,5.01596299]
[1736516018841,0.34653756,3266.1,3265.8,5.01596299]
[1736516019044,3.2078,3266.1,3265.8,5.01596299]
[1736516019240,3.2078,3266.8,3265.2,5.01596299]
[1736516019444,3.2078,3266.1,3265.4,3.2078]
[1736516019655,3.2078,3265.6,3265.2,5.01596299]
[1736516019948,0.34670842,3265.5,3265.2,5.01596299]
[1736516020151,0.34670842,3265.5,3263.8,4.4813]
[1736516020152,0.34670621,3265.4,3264.6,5.01596299]
[1736516020346,1.5304,3267.0,3264.8,0.30628]
[1736516020347,0.34670621,3265.3,3264.8,0.30628]
[1736516020546,0.34670621,3265.2,3264.6,8.22376299]
[1736516020749,3.2078,3265.9,3264.6,8.22376299]
[1736516020951,3.2078,3265.5,3264.6,5.01596299]
[1736516021246,0.34708603,3265.4,3264.6,5.01596299]
[1736516021451,3.2078,3265.1,3264.6,5.01596299]
[1736516021747,0.34708603,3265.0,3264.6,5.01596299]
[1736516021948,3.55488603,3265.0,3264.6,5.01596299]
[1736516022144,0.34708603,3264.9,3264.6,5.01596299]
[1736516022454,0.30629,3264.7,3264.0,5.01596299]
[1736516022651,3.55488603,3264.6,3264.0,5.01596299]
[1736516022846,0.34708603,3264.5,3264.2,3.2078]
[1736516023045,3.2078,3265.4,3264.4,5.01596299]
[1736516023342,3.2078,3265.1,3264.4,5.01596299]
[1736516023542,3.2078,3264.6,3264.4,5.01596299]
[1736516023749,0.34771822,3264.5,3264.4,5.01596299]
[1736516024353,0.34771822,3264.5,3263.9,40.8]
[1736516024540,0.30635,3264.0,3263.9,40.8]
[1736516024741,0.30641,3263.4,3263.2,5.01596299]
[1736516024952,3.55550121,3263.9,3263.2,5.01596299]
[1736516025245,3.2078,3263.5,3263.2,45.81596299]
[1736516025452,0.34770121,3263.4,3263.2,45.81596299]
[1736516025648,0.3474917,3263.4,3263.2,45.81596299]
[1736516026056,3.2078,3265.0,3263.3,13.2078]
[1736516026241,0.30641,3263.4,3263.3,5.0]
[1736516026641,1.53139,3264.9,3263.3,5.0]
[1736516026642,0.30638,3263.8,3263.3,5.0]
[1736516026842,3.2078,3264.1,3263.3,5.0]
[1736516027050,0.30641,3263.4,3263.3,1.84449]
[1736516027254,0.30652,3262.3,3262.0,5.01596299]
[1736516027552,3.2078,3262.7,3262.2,1.1668736]
[1736516027950,3.2078,3263.3,3262.6,5.87637659]
[1736516028144,3.2078,3262.8,3262.3,0.8604136]
[1736516028551,0.3065,3262.4,3262.1,3.2078]
[1736516028748,3.2078,3262.8,3262.2,0.8604136]
[1736516029054,3.2078,3263.2,3262.5,0.8604136]
[1736516029549,3.2078,3263.2,3263.0,0.8604136]
[1736516029757,0.30644,3263.1,3262.8,0.8604136]
[1736516030053,3.2078,3263.2,3262.4,0.8604136]
[1736516030245,3.2078,3263.2,3262.2,0.8604136]
[1736516030451,0.30647,3262.8,3262.6,0.8604136]
[1736516030648,3.2078,3263.2,3262.1,3.2078]
[1736516030950,0.3064,3263.6,3263.1,0.8604136]
[1736516031141,3.2078,3264.0,3263.2,0.8604136]
[1736516031346,0.30642,3263.3,3263.2,0.8604136]
[1736516031850,0.76591,3263.9,3262.0,5.01596299]
[1736516031851,0.30647,3262.7,3262.2,3.2078]
[1736516032155,0.30657,3261.7,3261.6,3.2078]
[1736516032352,3.2078,3261.8,3260.2,5.01596299]
[1736516032648,3.2078,3261.4,3260.3,0.8604136]
[1736516032854,0.30672,3260.2,3259.7,3.2078]
[1736516033049,3.2078,3260.4,3259.9,0.8604136]
[1736516033244,0.30674,3259.9,3259.8,0.8604136]
[1736516033754,0.30667,3260.7,3259.9,0.30673]
[1736516033950,0.30667,3260.6,3260.5,0.8604136]
[1736516034161,0.30665,3260.8,3260.7,0.8604136]
[1736516034452,3.51441,3261.3,3261.2,0.8604136]
[1736516034653,0.3067,3260.3,3260.2,3.2078]
[1736516034857,3.2078,3260.5,3259.1,3.2078]
[1736516035158,3.2078,3260.0,3259.4,0.8604136]
[1736516035451,3.2078,3260.5,3259.8,0.8604136]
[1736516035653,3.2078,3260.8,3259.4,0.8604136]
[1736516035950,0.34149532,3260.7,3259.9,0.8604136]
[1736516036151,0.30677,3259.6,3259.3,40.8]
[1736516036348,3.97445,3260.8,3259.9,0.8604136]
[1736516036552,0.3067,3260.4,3260.1,0.8604136]
[1736516036753,3.2078,3260.8,3260.1,3.2078]
[1736516036946,0.30671,3260.2,3260.1,3.2078]
[1736516037149,0.30671,3260.2,3260.1,4.0682136]
[1736516037351,0.30671,3260.2,3260.1,3.2078]
[1736516037650,3.2078,3261.2,3260.1,4.0682136]
[1736516037854,0.76659,3261.0,3260.2,0.8604136]
[1736516038154,0.30663,3261.1,3260.3,0.8604136]
[1736516038456,0.30666,3260.7,3260.6,0.8604136]
[1736516038951,0.30663,3261.1,3260.6,0.8604136]
[1736516039250,0.30659,3261.5,3261.0,3.2078]
[1736516039454,0.30657,3261.8,3261.6,0.8604136]
[1736516039650,0.3065,3262.4,3261.6,0.8604136]
[1736516039852,0.34042125,3262.3,3261.6,0.8604136]
[1736516040153,0.34041969,3262.2,3260.7,3.2078]
[1736516040349,3.2078,3262.0,3261.3,3.2078]
[1736516040549,0.3066,3261.4,3261.3,3.2078]
[1736516040750,0.36511713,3262.4,3261.3,0.8604136]
[1736516040952,0.36511713,3262.4,3261.2,3.2078]
[1736516040953,3.2078,3262.0,3260.7,3.2078]
[1736516041156,0.30662,3261.2,3261.1,0.8604136]
[1736516041346,0.30662,3261.2,3261.1,4.0682136]
[1736516041546,3.2078,3262.0,3261.1,4.0682136]
[1736516041752,3.2078,3262.3,3261.1,3.2078]
[1736516041947,0.30662,3261.2,3261.1,3.2078]
[1736516042154,3.2078,3261.4,3260.1,5.0]
[1736516042353,0.30671,3260.2,3260.1,5.0]
[1736516042556,0.64669857,3260.2,3258.5,3.2078]
[1736516042751,3.2078,3260.4,3258.6,3.2078]
[1736516042752,0.30681,3259.1,3258.6,3.2078]
[1736516043053,3.2078,3259.8,3258.6,3.2078]
[1736516043258,0.30682,3259.0,3258.9,0.8604136]
[1736516043459,0.30685,3258.7,3258.6,4.0682136]
[1736516043760,0.76716,3258.6,3257.3,3.2078]
[1736516043952,6.54960299,3260.1,3257.5,8.22376299]
[1736516043953,0.33943906,3258.5,3257.5,8.22376299]
[1736516044151,0.30693,3257.9,3257.5,3.2078]
[1736516044361,0.30688,3258.5,3257.9,0.30692]
[1736516044558,0.30688,3258.5,3257.5,5.01596299]
[1736516044559,0.30689,3258.4,3257.8,0.30693]
[1736516044757,0.30689,3258.4,3257.7,40.8]
[1736516044758,3.2078,3259.5,3258.1,5.01596299]
[1736516044952,3.2078,3260.7,3259.3,5.01596299]
[1736516045153,2.29539919,3261.2,3259.7,3.2078]
[1736516045457,2.29539919,3261.2,3260.7,3.2078]
[1736516045956,2.60201919,3261.2,3260.3,0.30669]
[1736516046260,0.30664,3260.9,3260.1,0.30671]
[1736516046455,0.30664,3261.0,3260.2,3.2078]
[1736516046657,3.2078,3260.6,3260.2,3.2078]
[1736516046950,0.30669,3260.4,3260.0,3.2078]
[1736516047264,0.3403584,3260.3,3260.2,3.2078]
[1736516047454,0.36534913,3262.4,3260.3,0.76675]
[1736516047760,3.82744919,3263.5,3261.0,3.2078]
[1736516047761,0.30662,3261.2,3261.0,3.2078]
[1736516048152,0.30662,3261.2,3261.0,44.0078]
[1736516048367,0.36552256,3262.1,3261.0,44.0078]
[1736516048660,0.30661,3261.3,3261.0,44.0078]
[1736516048857,2.66092175,3262.9,3261.0,49.02376299]
[1736516049059,2.60185919,3262.9,3262.2,3.2078]
[1736516049253,0.30645,3263.1,3262.8,3.2078]
[1736516049565,0.3064,3263.5,3262.4,3.2078]
[1736516049764,2.66092175,3263.6,3262.4,3.2078]
[1736516050061,2.29539919,3263.6,3263.5,3.2078]
[1736516050560,10.86872175,3263.6,3262.5,40.8]
[1736516050759,0.36695506,3263.1,3262.1,3.2078]
[1736516051066,0.3065,3262.5,3262.1,3.2078]
[1736516051358,0.36694168,3263.1,3262.1,3.2078]
[1736516051555,0.36694168,3263.1,3261.1,4.5134]
[1736516051556,0.36694168,3262.7,3261.5,3.2078]
[1736516051750,0.36694168,3262.1,3261.0,3.2078]
[1736516051956,0.30663,3261.1,3261.0,3.2078]
[1736516052351,0.30663,3261.1,3260.6,3.2078]
[1736516052552,0.36694168,3261.4,3260.6,3.2078]
[1736516052758,0.36694168,3261.2,3260.6,3.2078]
[1736516052960,0.36765391,3261.8,3261.1,3.2078]
[1736516053156,0.36765391,3261.8,3261.1,8.22376299]
[1736516053355,0.67419391,3262.1,3261.2,41.10661]
[1736516053654,3.2078,3262.2,3261.2,40.8]
[1736516053958,2.29539919,3263.1,3260.0,4.7595]